Cogmind - Beta 16 @@@ ROGUE MODE // 2026.01.17 @ 06:44:26 Player: Rocket Result: Destroyed by Y-45 Defender with Heavy Assault Rifle Performance ------------- Evolutions (2) 1000 Regions Visited (6) 1200 Robots Destroyed (104) 520 Value Destroyed (3493) 3493 Prototype IDs (0) 0 Alien Tech Used (0) 0 Bonus (1590) 1590 TOTAL SCORE: 7803 Bonus ------- High Alert Combat Kills 587 Follower Combat Kills 103 Entered Garrisons 400 Used RIF Installer 500 Cogmind --------- Core Integrity 0/550 Matter 288/300 Energy 100/100 System Corruption 1% Temperature Cool (9) Movement Walking (190) Ox1 Location -8/Garrison Parts ------- > --- POWER (1) -------- (None) > --- PROPULSION (4) --- Carbon-fiber Leg > --- UTILITY (2) ------ Large Storage Unit > --- WEAPON (4) ------- Axe > --- INVENTORY (15) --- Improved Ion Engine Improved Heat Sink Large Matter Pod (150) Advanced Sensor Array Advanced Signal Interpreter Targeting Computer Targeting Computer Light Armor Plating Medium Armor Plating EM Shield High-powered Tractor Beam Field Recycling Unit (0) Peak State ------------ > --- POWER ------------ Fission Core > --- PROPULSION ------- Aluminum Leg Carbon-fiber Leg Carbon-fiber Leg Carbon-fiber Leg > --- UTILITY ---------- Improved Heat Sink Large Storage Unit > --- WEAPON ----------- Beam Rifle Beam Rifle Heavy Assault Rifle Gauss Rifle > --- INVENTORY -------- Improved Ion Engine Aluminum Leg Aluminum Leg Carbon-fiber Leg Heat Sink Large Matter Pod Targeting Computer Targeting Computer Improved Utility Shielding Improved Utility Shielding Light Armor Plating Medium Armor Plating EM Shield High-powered Tractor Beam Field Recycling Unit [Rating: 32] Favorites ----------- Power Light Nuclear Core Engine Light Deuterium Engine Power Core Light Nuclear Core Propulsion Carbon-fiber Leg Treads Light Treads Leg Carbon-fiber Leg Wheel Wheel Utility Large Storage Unit Device Improved Heat Sink Storage Large Storage Unit Protection Hardened Medium Armor Plating Weapon Light Cannon Energy Gun Beam Rifle Ballistic Gun Heavy Assault Rifle Ballistic Cannon Light Cannon Slashing Weapon Axe Build | -11 -10 -9 -8 -8 -8 -8 ------- Run | Yrd Mat Mat Mat Gar Mat Gar Slots Evolved 4 | . . 2 2 . . . Power . | . . . . . . . Propulsion 2 | . . 2 . . . . Utility . | . . . . . . . Weapon 2 | . . . 2 . . . Parts Attached 71 | 8 2 22 6 19 10 4 Power 11 | 1 . 3 2 4 . 1 Engine 7 | 1 . 2 1 2 . 1 Core 4 | . . 1 1 2 . . Reactor . | . . . . . . . Propulsion 30 | 4 1 10 . 7 6 2 Treads 3 | . . . . . 3 . Leg 25 | 2 1 10 . 7 3 2 Wheel 2 | 2 . . . . . . Hover . | . . . . . . . Flight . | . . . . . . . Utility 9 | 1 1 2 1 3 1 . Device 6 | . . 2 1 3 . . Storage 2 | 1 1 . . . . . Processor . | . . . . . . . Hackware . | . . . . . . . Protection 1 | . . . . . 1 . Artifact . | . . . . . . . Weapon 21 | 2 . 7 3 5 3 1 Energy Gun 7 | 2 . 2 . 3 . . Energy Cannon . | . . . . . . . Ballistic Gun 7 | . . 3 . 2 1 1 Ballistic Cannon 6 | . . 2 3 . 1 . Launcher . | . . . . . . . Special Weapon . | . . . . . . . Impact Weapon . | . . . . . . . Slashing Weapon 1 | . . . . . 1 . Piercing Weapon . | . . . . . . . Special Melee Weapon . | . . . . . . . Unidentified Prototypes . | . . . . . . . Parts Lost 31 | . . 5 1 13 7 5 Power 7 | . . 3 . 2 . 2 Propulsion 13 | . . 1 . 6 3 3 Utility 1 | . . . . 1 . . Weapon 10 | . . 1 1 4 4 . Highest Loss Streak 5 | . . 3 1 5 3 5 To Critical Strikes 1 | . . . . . . 1 Average Backups 13 | 1 7 11 13 14 14 14 Power . | . 1 1 1 . 1 1 Propulsion 3 | . 6 6 4 3 2 1 Utility 7 | . . 2 6 10 11 11 Weapon . | . . 1 1 . . . Tool/Special . | . . . . . . . Unused Backups 22 | . . 5 3 4 . 10 Power 2 | . . . 1 . . 1 Propulsion 3 | . . 3 . . . . Utility 15 | . . 1 1 4 . 9 Weapon 2 | . . 1 1 . . . Tool/Special . | . . . . . . . Average Slot Usage (%) 93 | . 95 93 99 96 80 74 Engine 5 | . 14 4 . 6 . . Core 4 | . . 5 8 1 9 6 Leg 34 | . 28 43 36 34 26 30 Device 7 | . . 9 9 8 5 . Storage 10 | . 24 11 9 9 9 9 Energy Gun 11 | . 28 10 . 14 8 . Ballistic Gun 8 | . . 3 . 14 6 7 Ballistic Cannon 9 | . . 5 35 6 5 6 Peak Build Rating 32 | 6 7 21 24 32 32 29 Average Rating 21 | 4 6 12 22 26 26 21 On Entrance 16 | . 6 7 21 24 32 28 Avg Prop Armor Cover (%) 11 | . . . . . 11 . Naked Turns . | . . . . . . . Heaviest Build 53 | 12 32 32 45 45 52 53 Greatest Support 60 | 20 20 60 60 60 60 45 Greatest Overweight (x) 2 | . 1 1 . 1 2 2 Average Overweight (x) . | . . . . . . . Largest Inventory Capacity 15 | 8 15 15 15 15 15 15 Average Capacity 14 | 7 13 15 15 15 15 15 Most Carried 15 | 3 9 15 15 15 15 15 Average Carried 13 | 1 8 11 13 14 14 14 Final Capacity 15 | 8 15 15 15 15 15 15 Final Carried 15 | 3 9 15 15 15 15 12 Class Distribution -------------------- 41% | Scavenger-Gunner 22% | Mutant 18% | Scavenger-Mutant 16% | Gunner Dominant Class ---------------- Mutant | -10/Materials Mutant | -9/Materials Gunner | -8/Materials Scavenger-Gunner | -8/Garrison Scavenger-Mutant | -8/Materials Scavenger-Mutant | -8/Garrison Resources | -11 -10 -9 -8 -8 -8 -8 ----------- Run | Yrd Mat Mat Mat Gar Mat Gar Matter Collected 2723 | 216 84 262 542 1189 311 119 Remotely . | . . . . . . . Salvage Created 3556 | . 182 653 530 1310 643 238 Parts 187 | . 6 40 30 66 34 11 Haulers Intercepted 2 | . . 1 1 . . . Recyclers Shooed 1 | . . . 1 . . . Parts Field Recycled 26 | . . . 26 . . . Retrieved Matter 243 | . . . 243 . . . Parts Self-Destructed . | . . . . . . . Prevented . | . . . . . . . Parts Restored . | . . . . . . . Kills | -11 -10 -9 -8 -8 -8 -8 ------- Run | Yrd Mat Mat Mat Gar Mat Gar Combat Hostiles Destroyed 89 | . 3 15 15 33 14 9 Melee 5 | . . . . . 1 4 Guns 48 | . 3 15 . 24 4 2 Cannons 36 | . . . 15 9 9 3 Classes Destroyed 11 | . 2 5 1 2 . 1 Worker 2 | . . . 2 . . . Builder 5 | . . 1 3 . 1 . Hauler 2 | . . 1 1 . . . Recycler 3 | . 1 1 1 . . . Watcher 3 | . . 1 1 . 1 . Swarmer 22 | . . 5 7 6 . 4 Saboteur 2 | . . . . . . 2 Grunt 31 | . 3 5 7 7 7 2 Brawler 3 | . . . . 3 . . Sentry 27 | . . 5 1 13 7 1 Hunter 4 | . . . . 4 . . Best Kill Streak 11 | . 4 6 11 4 7 4 Combat Bots Only 6 | . 3 6 4 4 6 4 Max Kills in Single Turn 2 | . 1 1 2 2 2 2 Gunslinging 1 | . . . . 1 . . Exploded . | . . . . . . . Melee 1 | . . . . . 1 1 Uniques/NPCs Destroyed . | . . . . . . . Combat | -11 -10 -9 -8 -8 -8 -8 -------- Run | Yrd Mat Mat Mat Gar Mat Gar Hostile Shots Fired 517 | . 26 117 61 161 65 87 Missed 136 | . 6 34 11 46 18 21 Hits 381 | . 20 83 50 115 47 66 Melee 4 | . . . . 2 . 2 Projectile 377 | . 20 83 50 113 47 64 Critical Strikes 9 | . . 1 . . 5 3 Damage Taken 5058 | . 219 932 564 1663 747 933 Core 793 | . 66 165 117 150 48 247 Absorbed by Shields . | . . . . . . . Core Remaining (%) 77 | 100 73 58 . . . . Volleys Fired 262 | . 16 65 44 88 44 5 Largest 4 | . 2 2 4 4 4 3 Hottest 163 | . 80 105 120 163 163 87 Shots Fired 732 | . 32 101 162 318 108 11 Gun 442 | . 32 93 . 229 81 7 Cannon 290 | . . 8 162 89 27 4 Launcher . | . . . . . . . Special . | . . . . . . . Kinetic 467 | . . 30 162 203 61 11 Thermal 265 | . 32 71 . 115 47 . Explosive . | . . . . . . . Electromagnetic . | . . . . . . . Robot Hit Streak 20 | . 12 20 6 15 15 8 Robot Miss Streak 9 | . 3 3 8 4 9 2 Penetration Max 1 | . . . . . 1 . Secondary Targets 9 | . . 4 . 5 . . Max Gunslinging Chain 2 | . . 1 . 2 . . Shots Hit Robots 430 | . 23 67 66 185 69 20 Core Hits 196 | . 9 28 32 70 45 12 Critical Kills . | . . . . . . . Critical Parts Destroyed . | . . . . . . . Critical Strikes 22 | . . 2 4 8 3 5 Burn 10 | . . 2 . 5 3 . Blast 7 | . . . 4 3 . . Sever 5 | . . . . . . 5 Melee Attacks 20 | . . . . . 3 17 Impact . | . . . . . . . Slashing 20 | . . . . . 3 17 Piercing . | . . . . . . . Sneak Attacks . | . . . . . . . Combat Hostiles . | . . . . . . . Follow-up Attacks . | . . . . . . . Damage Inflicted 7313 | . 257 913 1204 2984 1298 657 Guns 4017 | . 257 824 . 2111 746 79 Cannons 2692 | . . 89 1204 873 481 45 Explosions . | . . . . . . . Melee 604 | . . . . . 71 533 Ramming . | . . . . . . . Kinetic 4487 | . . 247 1204 2079 833 124 Thermal 2222 | . 257 666 . 905 394 . Explosive . | . . . . . . . Electromagnetic . | . . . . . . . Impact . | . . . . . . . Slashing 604 | . . . . . 71 533 Piercing . | . . . . . . . Highest Corruption 1 | . . . . 1 1 1 Average Corruption 1 | . . . . 1 1 1 Corruption Purged . | . . . . . . . Corruption Blocked . | . . . . . . . Effects 6 | . . . . 3 3 . Matter Fused 2 | . . . . 1 1 . Energy Discharges 1 | . . . . 1 . . Parts Fused 1 | . . . . 1 . . Data Loss (minor) 1 | . . . . . 1 . Data Loss (major) 1 | . . . . . 1 . Overload Shots . | . . . . . . . Overflow Damage 8 | . . . . 8 . . Projectiles 8 | . . . . 8 . . Explosions . | . . . . . . . Melee . | . . . . . . . Knockbacks 31 | . . 2 11 4 13 1 Impact . | . . . . . . . Kinetic 29 | . . 2 9 4 13 1 Secondary 2 | . . . 2 . . . Self-Inflicted Damage . | . . . . . . . Shots . | . . . . . . . Rammed . | . . . . . . . Targets Rammed . | . . . . . . . Kicked . | . . . . . . . Crushed . | . . . . . . . Highest Temperature 573 | . 130 106 573 458 448 24 Average Temperature 111 | . 61 38 165 102 129 11 Received Heat Transfer 1977 | . 120 255 153 594 423 432 Effects 19 | . . . 13 1 5 . Shutdowns 2 | . . . 1 . 1 . Energy Bleed 3 | . . . 1 1 1 . Interference 3 | . . . 3 . . . Matter Decay 1 | . . . 1 . . . Short Circuit 1 | . . . 1 . . . Damage (minor) 5 | . . . 2 . 3 . Damage (major) 4 | . . . 4 . . . Siege Activations . | . . . . . . . Martial Activations . | . . . . . . . Shielding Activations . | . . . . . . . Robots Disrupted . | . . . . . . . Combat Hostiles . | . . . . . . . Robots Corrupted . | . . . . . . . Combat Hostiles . | . . . . . . . Parts Fried . | . . . . . . . Impact Corruptions . | . . . . . . . Robots Melted . | . . . . . . . Combat Hostiles . | . . . . . . . Parts Melted 8 | . 1 2 . 2 3 . Heat Transferred 5919 | . 575 1713 . 2410 1221 . Parts Sabotaged 7 | . . . . . . 7 Parts Stolen . | . . . . . . . Parts Stripped . | . . . . . . . Power Chain Reactions . | . . . . . . . Alert | -11 -10 -9 -8 -8 -8 -8 ------- Run | Yrd Mat Mat Mat Gar Mat Gar Maximum Alert Level 4 | . . . 1 4 2 2 Low Security (%) 33 | 100 100 100 44 1 . . Level 1 12 | . . . 55 12 . . Level 2 29 | . . . . 29 100 100 Level 3 14 | . . . . 33 . . Level 4 10 | . . . . 22 . . Level 5 . | . . . . . . . High Security . | . . . . . . . Max Security . | . . . . . . . Peak Influence 1145 | . 65 186 350 1145 680 636 Initial 557 | . . 1 55 193 557 436 Average 475 | . 19 88 208 767 606 522 Influence Increases 2721 | . 83 434 459 1122 383 240 Destroy 0b10 Robot/C 1840 | . 60 300 300 720 280 180 Destroy 0b10 Robot/NC 75 | . 5 20 40 . 10 . Destroy Leader 270 | . 10 84 54 20 92 10 Allied During Kill 16 | . . . . 16 . . Successful Hack 45 | . 8 12 4 21 . . Disable Machine 15 | . . . . 15 . . Anti-Garrison Action 300 | . . . . 250 . 50 Destroy Structure 25 | . . 3 1 20 1 . Partial Spotted 15 | . . . . 15 . . Lose Combat Pursuer 120 | . . 15 60 45 . . Influence Decreases 2095 | . 78 308 292 275 856 286 Entered New Map 1009 | . . 4 76 105 588 236 Time Decay 736 | . 78 254 206 . 198 . Lost Part 310 | . . 50 10 130 70 50 Lost Ally 40 | . . . . 40 . . Squads Dispatched 8 | . 1 1 2 . 4 . Investigation 4 | . 1 1 2 . . . Extermination . | . . . . . . . Reinforcement 1 | . . . . . 1 . Assault . | . . . . . . . Garrison 3 | . . . . . 3 . Intercept . | . . . . . . . Searches Triggered . | . . . . . . . Construction Impeded . | . . . . . . . Haulers Reinforced . | . . . . . . . Active Scanning Responses . | . . . . . . . Cargo Convoy Interrupts . | . . . . . . . Stealth | -11 -10 -9 -8 -8 -8 -8 --------- Run | Yrd Mat Mat Mat Gar Mat Gar Distress Signals 5 | . . 3 . . 2 . Communications Jammed . | . . . . . . . Distress Signals . | . . . . . . . Times Spotted 116 | . 6 22 21 36 17 14 Peak Tracking Total 12 | . 4 7 5 5 6 12 Tactical Retreats 5 | . . 1 3 1 . . Traps | -11 -10 -9 -8 -8 -8 -8 ------- Run | Yrd Mat Mat Mat Gar Mat Gar Traps Triggered 8 | . . . 1 6 . 1 Indirectly . | . . . . . . . Trap Hack Attempts . | . . . . . . . Triggered . | . . . . . . . Disarmed . | . . . . . . . Reprogrammed . | . . . . . . . Reused . | . . . . . . . Traps Extracted . | . . . . . . . Installed . | . . . . . . . Triggered . | . . . . . . . Machines | -11 -10 -9 -8 -8 -8 -8 ---------- Run | Yrd Mat Mat Mat Gar Mat Gar Machines Disabled 2 | . . . . 2 . . Max in Single Turn 1 | . . . . 1 . . Garrison Relay 1 | . . . . 1 . . Machines Repaired . | . . . . . . . Machines Dismantled . | . . . . . . . Machines Sabotaged . | . . . . . . . Overloaded Fab Kills . | . . . . . . . Hacking | -11 -10 -9 -8 -8 -8 -8 --------- Run | Yrd Mat Mat Mat Gar Mat Gar Machines Accessed 12 | . 1 2 2 4 2 1 Terminals 8 | . 1 1 . 4 1 1 Fabricators . | . . . . . . . Repair Stations . | . . . . . . . Recycling Units . | . . . . . . . Scanalyzers 2 | . . 1 1 . . . Garrison Access 2 | . . . 1 . 1 . Total Hacks 30 | . 4 5 4 11 4 2 Successful 10 | . 1 1 4 2 2 . Failed 20 | . 3 4 . 9 2 2 Catastrophic 5 | . 2 2 . 1 . . Database Lockouts . | . . . . . . . Manual 9 | . 4 2 . . 3 . Terminals 22 | . 4 2 . 11 3 2 Fabricators . | . . . . . . . Repair Stations . | . . . . . . . Recycling Units . | . . . . . . . Scanalyzers 6 | . . 3 3 . . . Garrison Access 2 | . . . 1 . 1 . Terminal Hacks 4 | . 1 . . 2 1 . Open Door 1 | . . . . 1 . . Registered Components 1 | . 1 . . . . . Zone Layout 1 | . . . . . 1 . Garrison Registry 1 | . . . . 1 . . Fabricator Hacks . | . . . . . . . Repair Station Hacks . | . . . . . . . Recycling Unit Hacks . | . . . . . . . Scanalyzer 4 | . . 1 3 . . . Insert Component 1 | . . . 1 . . . Analyze 1 | . . . 1 . . . Retrieve Study 2 | . . 1 1 . . . Garrison Access Hacks 2 | . . . 1 . 1 . Unlock Access 2 | . . . 1 . 1 . Unauthorized Hacks . | . . . . . . . Terminals . | . . . . . . . Fabricators . | . . . . . . . Repair Stations . | . . . . . . . Recycling Units . | . . . . . . . Scanalyzers . | . . . . . . . Garrison Access . | . . . . . . . Data Cores Recovered . | . . . . . . . Used . | . . . . . . . Hacking Detections 8 | . 1 2 1 3 . 1 Full Trace Events 6 | . 1 1 1 2 . 1 Feedback Events 1 | . . . . 1 . . Corruption 1 | . . . . 1 . . Feedback Blocked . | . . . . . . . Robot Schematics Acquired . | . . . . . . . Robots Built . | . . . . . . . Authchips . | . . . . . . . Time . | . . . . . . . Total Robot Build Rating . | . . . . . . . Part Schematics Acquired . | . . . . . . . Parts Built . | . . . . . . . Authchips . | . . . . . . . Time . | . . . . . . . Total Part Build Rating . | . . . . . . . Part Studies Acquired 2 | . . 1 1 . . . Parts Repaired . | . . . . . . . Time . | . . . . . . . Parts Recycled . | . . . . . . . Recycled Matter . | . . . . . . . Retrieved Matter . | . . . . . . . Retrieved Components . | . . . . . . . Parts Scanalyzed 1 | . . . 1 . . . Part Schematics Acquired . | . . . . . . . Parts Damaged . | . . . . . . . Bothacking | -11 -10 -9 -8 -8 -8 -8 ------------ Run | Yrd Mat Mat Mat Gar Mat Gar Used RIF Installer 1 | . . . . 1 . . Robots Hacked . | . . . . . . . Non-combat . | . . . . . . . Combat . | . . . . . . . Robot Hacks Applied . | . . . . . . . Relay Couplers Released 5 | . . . . 5 . . Machine Destruction 5 | . . . . 5 . . Fabnet Peak Effective % . | . . . . . . . Robots Rewired . | . . . . . . . Allies Hacked . | . . . . . . . Hacks Repelled . | . . . . . . . Allies | -11 -10 -9 -8 -8 -8 -8 -------- Run | Yrd Mat Mat Mat Gar Mat Gar Total Allies 2 | . . . . 2 . . Largest Group 2 | . . . . 2 . . Highest-Rated Group 56 | . . . . 56 . . Highest-Rated Ally 31 | . . . . 31 . . Total Orders . | . . . . . . . Ally Attacks 12 | . . . . 12 . . Total Damage 265 | . . . . 265 . . Kills 3 | . . . . 3 . . Allies Corrupted . | . . . . . . . Allies Melted . | . . . . . . . Intel | -11 -10 -9 -8 -8 -8 -8 ------- Run | Yrd Mat Mat Mat Gar Mat Gar Active Infowar (turns) . | . . . . . . . Robot Analysis Total . | . . . . . . . Derelict Logs Recovered . | . . . . . . . Drone Launches . | . . . . . . . Drone Recoveries . | . . . . . . . Exploration | -11 -10 -9 -8 -8 -8 -8 ------------- Run | Yrd Mat Mat Mat Gar Mat Gar Turns Passed 3568 | 67 268 646 437 1573 406 171 Spaces Moved 1868 | 45 122 340 214 964 128 55 Core 1 | 1 . . . . . . Treads 24 | . . . . . 24 . Legs 1839 | 40 122 340 214 964 104 55 Wheels 4 | 4 . . . . . . Hover . | . . . . . . . Flight . | . . . . . . . Fastest Speed 50 | 50 120 120 120 120 120 120 Average Speed 129 | 114 163 120 120 122 175 188 Slowest Speed 320 | 120 190 190 120 190 320 260 Overloaded Moves . | . . . . . . . Propulsion Burnouts . | . . . . . . . Robots Hopped . | . . . . . . . Potential Cave-ins . | . . . . . . . Cave-ins Triggered . | . . . . . . . Exploration Rate (%) 25 | 3 22 36 18 76 15 8 Regions Visited 6 Branch Regions . Pre-discovered Areas . | . . . . . . . Known Exits Taken 2 | . . . 1 . 1 . Unknown Exits Taken 3 | 1 1 1 . . . . Scrap Searched . | . . . . . . . Spaces Dug . | . . . . . . . Terrain Destroyed 1 | . . . . 1 . . Melee . | . . . . . . . Projectile 1 | . . . . 1 . . AOE . | . . . . . . . Terrain Rammed . | . . . . . . . Walls Destroyed . | . . . . . . . Machines Disabled . | . . . . . . . Actions | -11 -10 -9 -8 -8 -8 -8 --------- Run | Yrd Mat Mat Mat Gar Mat Gar Total 2428 | 57 159 478 290 1149 213 82 Wait 99 | . 15 18 13 31 22 . Move 1863 | 44 121 339 214 963 127 55 Hop . | . . . . . . . Pick Up 40 | 3 5 15 6 9 2 . Fast Attach 32 | 8 1 4 . 8 9 2 Attach 18 | . . 5 3 6 1 3 Detach . | . . . . . . . Swap 35 | . 1 15 5 14 . . Drop 46 | 2 . 17 5 17 5 . Fire 262 | . 16 65 44 88 44 5 Melee 20 | . . . . . 3 17 Ram . | . . . . . . . Kick . | . . . . . . . Crush . | . . . . . . . Escape Stasis 13 | . . . . 13 . . Rewire . | . . . . . . . Trap . | . . . . . . . Miscellaneous . | . . . . . . . Route ------- -11/Scrapyard -10/Materials -9/Materials (discovered 2 exits: *Mat / [*Min]) -8/Materials -8/Garrison (discovered 3 exits: *Mat x3) -8/Materials -8/Garrison History --------- Turn | Location | Event 27 | -11/Scrapyard | Discovered new exit (range 16) 68 | -11/Scrapyard | Entered Materials 310 | -10/Materials | Build established: Mutant 329 | -10/Materials | Discovered new exit (range 4) 336 | -10/Materials | Entered another Materials area 336 | -9/Materials | Evolved 2 slots: Propulsion x2 622 | -9/Materials | Lost 3 parts (2p1n) 765 | -9/Materials | Discovered new exit (range 10) 963 | -9/Materials | Discovered new exit (range 16) 982 | -9/Materials | Entered another Materials area 982 | -8/Materials | Evolved 2 slots: Weapon x2 1292 | -8/Materials | Build established: Gunner 1419 | -8/Materials | Identified exit to Garrison 1419 | -8/Materials | Entered Garrison 1466 | -8/Garrison | Rescued a captive Derelict 1467 | -8/Garrison | Rescued a captive Derelict 1483 | -8/Garrison | Triggered checkpoint 1633 | -8/Garrison | Triggered checkpoint 1688 | -8/Garrison | Discovered new exit (range 12) 1697 | -8/Garrison | Triggered checkpoint 1768 | -8/Garrison | Garrison Relay disabled 1893 | -8/Garrison | Build established: Scavenger-Gunner 2004 | -8/Garrison | Lost 5 parts (3n2w) 2063 | -8/Garrison | Discovered new exit (range 15) 2163 | -8/Garrison | Triggered checkpoint 2251 | -8/Garrison | Lost 4 parts (2p1n1u) 2427 | -8/Garrison | Installed Relay Interface Framework 2563 | -8/Garrison | Triggered checkpoint 2597 | -8/Garrison | Discovered new exit (range 12) 2603 | -8/Garrison | Discovered new exit (range 16) 2603 | -8/Garrison | Discovered new exit (range 43) 2603 | -8/Garrison | Discovered new exit (range 53) 2992 | -8/Garrison | Entered Materials 3084 | -8/Materials | Core integrity fell below 50% 3118 | -8/Materials | Lost 3 parts (1n2w) 3161 | -8/Materials | Garrison activated, responded to threat 3280 | -8/Materials | Garrison activated, responded to threat 3377 | -8/Materials | Identified exit to Garrison 3398 | -8/Materials | Entered Garrison 3527 | -8/Garrison | Core integrity fell below 20% 3569 | -8/Garrison | Destroyed by Y-45 Defender with Heavy Assault Rifle Last Messages --------------- 03512_ E-15 Imp destroyed. 03513_ S-10 Pest destroyed. 03516_ Aluminum Leg destroyed. 03524_ G-50 Soldier Lgt. Angular Momentum Engine severed. 03527_ Acquired 10 matter. 03528_ Acquired 3 matter. 03532_ G-50 Soldier Carbon-fiber Leg severed. 03532_ Imp. Ion Engine destroyed. 03535_ G-50 Soldier destroyed. 03537_ S-10 Pest destroyed. 03539_ Critical hit (Burn: +37). 03540_ G-47 Trooper destroyed. 03544_ G-47 Trooper Particle Gun severed. 03552_ Y-45 Defender Hvy. Assault Rifle severed. 03559_ Acquired Carbon-fiber Leg. 03561_ Y-45 Defender Lgt. Armor Plating severed. 03562_ Aluminum Leg destroyed. 03563_ Y-45 Defender destroyed. 03566_ Carbon-fiber Leg destroyed. Map ----- +----------------------------------------------------+ | ?????????????????????????????#######?? | | ?????????????????????????????# #?? | | ?????????????????????????????# #?? | | ?????????????????????????????# #?? | | ?????????????????????????????### #?? | | ???????????????????????????????# #?? | | ???????????????????????????????# #?? | | ???????????????????????????????# #?? | | ???????????????????????????????# #?? | | ???????????????????????????????# #?? | | ???????????????????????????????# #?? | | ???????????????????????????????# #?? | | ???????????????????????????????# #?? | | ???????????????????????????????# #?? | | ???????????????????????????????# #?? | | ???????????????????????????????# #?? | | ???????????????????????????????# #?? | | ???????????????????????????????# #?? | | ???????????????????????????????# #?? | | ???????????????????????????????# #?? | | ???????????????????????????????# #?? | | ???????????????????????????????# #?? | | ???????????####??#??????????#### #?? | | ??????????##!!##+############T## ### | | ??????????#!%!Y!===[ + | | ??????????#!=@##%%= + | | ??????????##!!####### ######### #?? | | ???????????####?????# #???????# #?? | | ????????????????????" #???????# #?? | | ????????????????????" ???????# #?? | | ????????????????????" "??????# #?? | | ????????????????????" "#?????# #?? | | ????????????????????" #"#?????#^ #?? | | ????????????????????# ###?????# ?? | | ????????????????????####???????# ?? | | ???????????????????????????????# ? | | ???????????????????????????????######? | | ?????????????????????????????????????? | | ?????????????????????????????????????? | | ?????????????????????????????????????? | | ?????????????????????????????????????? | | ?????????????????????????????????????? | | ?????????????????????????????????????? | | ?????????????????????????????????????? | | ?????????????????????????????????????? | | ?????????????????????????????????????? | | ?????????????????????????????????????? | | ?????????????????????????????????????? | | ?????????????????????????????????????? | | ?????????????????????????????????????? | +----------------------------------------------------+ Best States ------------- Heat Dissipation 45 Energy Generation 18 Energy Capacity 310 Matter Stores 300 Matter Capacity 300 Sight Range 16 Terrain Scan Density 10 Armor Coverage 225 Evasion (%) 55 Recoil Reduction 3 Item Schematics ----------------- None Robot Schematics ------------------ None Fabricated ------------ Nothing Repaired ---------- Nothing Studied --------- Hvy. Assault Rifle | -9/Materials | Hacked Lgt. Cannon | -8/Materials | Hacked Alien Tech Used ----------------- None Achievements -------------- None Challenges ------------ None Game ------ Seed HypervelocitySlugExpander Manual? 0 Play Time 00:23:47 Cumulative 75.7 hours Start 2026.01.17 @ 06:17:50 End 2026.01.17 @ 06:44:26 Sessions 1 Manual Loads 0 Difficulty Rogue Special Mode None Game No. 111 Rogue 111 Adventurer 0 Explorer 0 Win Type - Total 0 Types 0/0/0/0/0/0/0/0/0/0 Lore% 16 Gallery% 35 Achievement% 25 Wizard Run 0 Options --------- Layout 1 ASCII 0 Keyboard 0 Movement Mouse Keybinds 0 Fullscreen 2 Font 24/Smallcaps Map View 25x17 Zoom Use 59% Tactical HUD 1 Map Filters NONE Filters NONE Steam 1 RUN: 7eedbb6b-0a70-409e-a37a-a432201731d2